fUSD/lending_fUSD_20260322
["ID","MTS","AMOUNT","RATE_DAILY","PERIOD"]
[408722310,1774170661295,-416.263066,0.00043836,120]
[408722311,1774170661304,-733.238379,0.00043836,120]
[408722312,1774170661314,-416.263066,0.00043836,120]
[408722313,1774170661323,-151.0,0.00043836,120]
[408722314,1774170661332,-162.098379,0.00043836,120]
[408722315,1774170661341,-733.238379,0.00043836,120]
[408722316,1774170661351,-416.263066,0.00043836,120]
[408722317,1774170661360,-733.238379,0.00043836,120]
[408722318,1774170661369,-416.263066,0.00043836,120]
[408722319,1774170661378,-733.238379,0.00043836,120]
[408722320,1774170661387,-416.263066,0.00043836,120]
[408722321,1774170661396,-733.238379,0.00043836,120]
[408722322,1774170661406,-416.263066,0.00043836,120]
[408722323,1774170661416,-416.263066,0.00043836,120]
[408722324,1774170661426,-733.238379,0.00043836,120]
[408722325,1774170661435,-269.452046,0.00043836,120]
[408722326,1774170661444,-416.263066,0.00043836,120]
[408722327,1774170661454,-151.0,0.00043836,120]
[408722328,1774170661463,-269.452046,0.00043836,120]
[408722329,1774170661472,-151.0,0.00043836,120]
[408722330,1774170661481,-733.238379,0.00043836,120]
[408722331,1774170661491,-151.0,0.00043836,120]
[408722332,1774170661500,-151.0,0.00043836,120]
[408722333,1774170661510,-269.452046,0.00043836,120]
[408722334,1774170661519,-151.0,0.00043836,120]
[408722335,1774170661529,-269.452046,0.00043836,120]
[408722336,1774170661538,-371.88624,0.00043836,120]
[408722337,1774170661547,-151.0,0.00043836,120]
[408722338,1774170661557,-371.88624,0.00043836,120]
[408722339,1774170661566,-151.0,0.00043836,120]
[408722340,1774170661575,-151.0,0.00043836,120]
[408722341,1774170661585,-1856.227355,0.00043836,120]
[408722342,1774170661597,-269.452046,0.00043836,120]
[408722343,1774170661607,-197.975784,0.00043836,120]
[408722344,1774170661617,-1856.227355,0.00043836,120]
[408722345,1774170661626,-371.88624,0.00043836,120]
[408722346,1774170661636,-269.452046,0.00043836,120]
[408722347,1774170661646,-151.0,0.00043836,120]
[408722348,1774170661655,-371.88624,0.00043836,120]
[408722349,1774170661664,-151.0,0.00043836,120]
[408722350,1774170661673,-151.0,0.00043836,120]
[408722351,1774170661682,-151.0,0.00043836,120]
[408722352,1774170661691,-1856.227355,0.00043836,120]
[408722353,1774170661700,-269.452046,0.00043836,120]
[408722354,1774170661710,-1856.227355,0.00043836,120]
[408722355,1774170661719,-371.88624,0.00043836,120]
[408722356,1774170661728,-269.452046,0.00043836,120]
[408722357,1774170661737,-371.88624,0.00043836,120]
[408722358,1774170661746,-671.070425,0.00043836,120]
[408722359,1774170661756,-151.0,0.00043836,120]
[408722360,1774170661765,-671.070425,0.00043836,120]
[408722361,1774170661774,-151.0,0.00043836,120]
[408722362,1774170661784,-1856.227355,0.00043836,120]
[408722363,1774170661794,-371.88624,0.00043836,120]
[408722364,1774170661803,-1856.227355,0.00043836,120]
[408722365,1774170661812,-371.88624,0.00043836,120]
[408722366,1774170661822,-671.070425,0.00043836,120]
[408722367,1774170661832,-151.0,0.00043836,120]
[408722368,1774170661842,-671.070425,0.00043836,120]
[408722369,1774170661852,-183.332178,0.00043836,120]
[408722370,1774170661861,-1856.227355,0.00043836,120]
[408722371,1774170661871,-1856.227355,0.00043836,120]
[408722372,1774170661881,-163.16724,0.00043836,120]
[408722373,1774170661892,-671.070425,0.00043836,120]
[408722374,1774170661902,-163.16724,0.00043836,120]
[408722375,1774170661912,-671.070425,0.00043836,120]
[408722376,1774170661921,-224.210914,0.00043836,120]
[408722377,1774170661930,-224.210914,0.00043836,120]
[408722378,1774170661940,-163.16724,0.00043836,120]
[408722379,1774170661949,-671.070425,0.00043836,120]
[408722380,1774170661958,-163.16724,0.00043836,120]
[408722381,1774170661967,-224.210914,0.00043836,120]
[408722382,1774170661977,-1031.242288,0.00043836,120]
[408722383,1774170661986,-671.070425,0.00043836,120]
[408722384,1774170661996,-224.210914,0.00043836,120]
[408722385,1774170662006,-1031.242288,0.00043836,120]
[408722386,1774170662015,-163.16724,0.00043836,120]
[408722387,1774170662024,-1000.0,0.00043836,18]
[408722388,1774170662033,-500.0,0.00043836,10]
[408722389,1774170662043,-197.0,0.00043836,30]
[408722390,1774170662053,-219.0,0.00043836,30]
[408722391,1774170662062,-150.0,0.00043836,30]
[408722392,1774170662072,-203.0,0.00043836,30]
[408722393,1774170662081,-200.0,0.00043836,30]
[408722394,1774170662091,-270.0,0.00043836,30]
[408722395,1774170662101,-150.0,0.00043836,30]
[408722396,1774170662111,-170.0,0.00043836,30]
[408722397,1774170662124,-237.0,0.00043836,30]
[408722398,1774170662134,-150.0,0.00043836,30]
[408722399,1774170662145,-161.0,0.00043836,30]
[408722400,1774170662155,-150.0,0.00043836,30]
[408722401,1774170662167,-163.0,0.00043836,30]
[408722402,1774170662176,-150.0,0.00043836,30]
[408722403,1774170662185,-172.0,0.00043836,30]
[408722404,1774170662195,-200.0,0.00043836,30]
[408722405,1774170662205,-200.0,0.00043836,30]
[408722406,1774170662214,-164.0,0.00043836,30]
[408722407,1774170662223,-200.0,0.00043836,30]
[408722408,1774170662233,-275.0,0.00043836,30]
[408722409,1774170662242,-250.0,0.00043836,30]
[408722410,1774170662252,-250.0,0.00043836,30]
[408722411,1774170662261,-195.0,0.00043836,30]
[408722412,1774170662271,-250.0,0.00043836,30]
[408722413,1774170662281,-250.0,0.00043836,30]
[408722414,1774170662291,-187.0,0.00043836,30]
[408722415,1774170662300,-5800.0,0.00043836,14]
[408722416,1774170662309,-150.0,0.00043932,30]
[408722417,1774170662319,-5800.0,0.00043941,14]
[408722418,1774170662328,-5800.0,0.00043949,14]
[408722419,1774170662337,-5800.0,0.00043958,14]
[408722420,1774170662346,-5800.0,0.00043966,14]
[408722421,1774170662355,-5800.0,0.00043975,14]
[408722422,1774170662364,-624.55,0.0004398,30]
[408722423,1774170662374,-654.49989219,0.00043983,120]
[408722424,1774170662383,-5800.0,0.00043983,14]
[408722425,1774170662392,-151.0,0.00043983,120]
[408722426,1774170662402,-733.238379,0.00043983,120]
[408722427,1774170662411,-416.263066,0.00043983,120]
[408722428,1774170662420,-733.238379,0.00043983,120]
[408722429,1774170662429,-416.263066,0.00043983,120]
[408722430,1774170662439,-416.263066,0.00043983,120]
[408722431,1774170662448,-733.238379,0.00043983,120]
[408722432,1774170662457,-416.263066,0.00043983,120]
[408722433,1774170662466,-269.452046,0.00043983,120]
[408722434,1774170662476,-733.238379,0.00043983,120]
[408722435,1774170662486,-151.0,0.00043983,120]
[408722436,1774170662495,-151.0,0.00043983,120]
[408722437,1774170662505,-269.452046,0.00043983,120]
[408722438,1774170662514,-151.0,0.00043983,120]
[408722439,1774170662524,-371.88624,0.00043983,120]
[408722440,1774170662533,-151.0,0.00043983,120]
[408722441,1774170662543,-1856.227355,0.00043983,120]
[408722442,1774170662553,-269.452046,0.00043983,120]
[408722443,1774170662563,-371.88624,0.00043983,120]
[408722444,1774170662572,-151.0,0.00043983,120]
[408722445,1774170662582,-1856.227355,0.00043983,120]
[408722446,1774170662591,-269.452046,0.00043983,120]
[408722447,1774170662601,-371.88624,0.00043983,120]
[408722448,1774170662610,-671.070425,0.00043983,120]
[408722449,1774170662619,-151.0,0.00043983,120]
[408722450,1774170662629,-1856.227355,0.00043983,120]
[408722451,1774170662638,-371.88624,0.00043983,120]
[408722452,1774170662648,-151.0,0.00043983,120]
[408722453,1774170662657,-671.070425,0.00043983,120]
[408722454,1774170662667,-1856.227355,0.00043983,120]
[408722455,1774170662676,-163.16724,0.00043983,120]
[408722456,1774170662685,-671.070425,0.00043983,120]
[408722457,1774170662694,-224.210914,0.00043983,120]
[408722458,1774170662704,-163.16724,0.00043983,120]
[408722459,1774170662713,-671.070425,0.00043983,120]
[408722460,1774170662723,-224.210914,0.00043983,120]
[408722461,1774170662731,-1031.242288,0.00043983,120]
[408722462,1774170662740,-5800.0,0.00043992,14]
[408722463,1774170662750,-500.0,0.00044,45]
[408722464,1774170662760,-372.50511899,0.00044,2]
[408722465,1774170662769,-500.0,0.00044,45]
[408722466,1774170662779,-500.0,0.00044,45]
[408722467,1774170662788,-500.0,0.00044,45]
[408722468,1774170662797,-500.0,0.00044,45]
[408722469,1774170662806,-500.0,0.00044,45]
[408722470,1774170662815,-500.0,0.00044,45]
[408722471,1774170662825,-500.0,0.00044,45]
[408722472,1774170662834,-150.0,0.00044,57]
[408722473,1774170662843,-5800.0,0.00044,14]
[408722474,1774170662853,-527.28,0.0004402,120]
[408722475,1774170662862,-1093.0,0.00044099,120]
[408722476,1774170662872,-5113.74212955,0.00044175,17]
[408722477,1774170662882,-5000.0,0.00044175,15]
[408722478,1774170662891,-5000.0,0.00044175,17]
[408722479,1774170662900,-5000.0,0.00044175,16]
[408722480,1774170662909,-527.28,0.00044294,120]
[408722481,1774170662919,-150.0,0.00044305,30]
[408722482,1774170662928,-326.32,0.000444,120]
[408722483,1774170662938,-500.0,0.000445,45]
[408722484,1774170662949,-500.0,0.000445,45]
[408722485,1774170662958,-500.0,0.000445,45]
[408722486,1774170662967,-500.0,0.000445,45]
[408722487,1774170662976,-500.0,0.000445,45]
[408722488,1774170662986,-500.0,0.000445,45]
[408722489,1774170662995,-500.0,0.000445,45]
[408722490,1774170663004,-500.0,0.000445,45]
[408722491,1774170663014,-166.62325,0.00044521,120]
[408722492,1774170663023,-166.62325,0.00044521,120]
[408722493,1774170663033,-166.62325,0.00044521,120]
[408722494,1774170663042,-166.62325,0.00044521,120]
[408722495,1774170663052,-166.62325,0.00044521,120]
[408722496,1774170663061,-166.62325,0.00044521,120]
[408722497,1774170663071,-166.62325,0.00044521,120]
[408722498,1774170663080,-166.62325,0.00044521,120]
[408722499,1774170663090,-166.62325,0.00044521,120]
[408722500,1774170663099,-166.62325,0.00044521,120]
[408722501,1774170663113,-166.62325,0.00044521,120]
[408722502,1774170663125,-166.62325,0.00044521,120]
[408722503,1774170663135,-494.50541069,0.00044543,2]
[408722504,1774170663144,-1515.31187087,0.00044543,2]
[408722505,1774170663153,-1000.00000099,0.00044543,2]
[408722506,1774170663164,-151.0,0.00044543,120]
[408722507,1774170663173,-151.0,0.00044543,120]
[408722508,1774170663182,-219.606658,0.00044543,120]
[408722509,1774170663192,-271.983564,0.00044543,120]
[408722510,1774170663201,-271.983564,0.00044543,120]
[408722511,1774170663211,-271.983564,0.00044543,120]
[408722512,1774170663220,-271.983564,0.00044543,120]
[408722513,1774170663229,-151.0,0.00044543,120]
[408722514,1774170663239,-151.0,0.00044543,120]
[408722515,1774170663249,-256.235403,0.00044543,120]
[408722516,1774170663258,-151.0,0.00044543,120]
[408722517,1774170663267,-507.039657,0.00044543,120]
[408722518,1774170663413,-507.039657,0.00044543,120]
[408722519,1774170663423,-151.0,0.00044543,120]
[408722520,1774170663433,-507.039657,0.00044543,120]
[408722521,1774170663442,-1323.659419,0.00044543,120]
[408722522,1774170663453,-151.0,0.00044543,120]
[408722523,1774170663463,-507.039657,0.00044543,120]
[408722524,1774170663472,-1901.78295,0.00044543,120]
[408722525,1774170663481,-1323.659419,0.00044543,120]
[408722526,1774170663491,-151.0,0.00044543,120]
[408722527,1774170663500,-462.535491,0.00044543,120]
[408722528,1774170663510,-1901.78295,0.00044543,120]
[408722529,1774170663519,-1323.659419,0.00044543,120]
[408722530,1774170663528,-462.535491,0.00044543,120]
[408722531,1774170663538,-204.098608,0.00044543,120]
[408722532,1774170663548,-151.0,0.00044543,120]
[408722533,1774170663558,-289.860517,0.00044543,120]
[408722534,1774170663567,-1901.78295,0.00044543,120]
[408722535,1774170663576,-1323.659419,0.00044543,120]
[408722536,1774170663586,-462.535491,0.00044543,120]
[408722537,1774170663596,-204.098608,0.00044543,120]
[408722538,1774170663605,-289.860517,0.00044543,120]
[408722539,1774170663615,-1901.78295,0.00044543,120]
[408722540,1774170663625,-462.535491,0.00044543,120]
[408722541,1774170663635,-204.098608,0.00044543,120]
[408722542,1774170663645,-926.172459,0.00044543,120]
[408722543,1774170663655,-289.860517,0.00044543,120]
[408722544,1774170663666,-204.098608,0.00044543,120]
[408722545,1774170663676,-926.172459,0.00044543,120]
[408722546,1774170663686,-289.860517,0.00044543,120]
[408722547,1774170663695,-1287.838154,0.00044543,120]
[408722548,1774170663705,-926.172459,0.00044543,120]
[408722549,1774170663715,-429.787344,0.00044543,120]
[408722550,1774170663725,-1287.838154,0.00044543,120]
[408722551,1774170663735,-926.172459,0.00044543,120]
[408722552,1774170663744,-648.211476,0.00044543,120]
[408722553,1774170663755,-429.787344,0.00044543,120]
[408722554,1774170663765,-1287.838154,0.00044543,120]
[408722555,1774170663775,-151.0,0.00044543,120]
[408722556,1774170663784,-151.0,0.00044543,120]
[408722557,1774170663794,-1725.509441,0.00044543,120]
[408722558,1774170663803,-429.787344,0.00044543,120]
[408722559,1774170663812,-648.211476,0.00044543,120]
[408722560,1774170663822,-1287.838154,0.00044543,120]
[408722561,1774170663832,-169.3477,0.00044543,120]
[408722562,1774170663841,-1725.509441,0.00044543,120]
[408722563,1774170663851,-429.787344,0.00044543,120]
[408722564,1774170663860,-648.211476,0.00044543,120]
[408722565,1774170663870,-1725.509441,0.00044543,120]
[408722566,1774170663880,-648.211476,0.00044543,120]
[408722567,1774170663889,-1418.405474,0.00044543,120]
[408722568,1774170663899,-1725.509441,0.00044543,120]
[408722569,1774170663908,-1418.405474,0.00044543,120]
[408722570,1774170663917,-1228.057258,0.00044543,120]
[408722571,1774170663927,-1418.405474,0.00044543,120]
[408722572,1774170663936,-1228.057258,0.00044543,120]
[408722573,1774170663945,-1418.405474,0.00044543,120]
[408722574,1774170663956,-1228.057258,0.00044543,120]
[408722575,1774170663966,-500.195571,0.00044543,120]
[408722576,1774170663975,-1228.057258,0.00044543,120]
[408722577,1774170663985,-500.195571,0.00044543,120]
[408722578,1774170663994,-151.0,0.00044543,120]
[408722579,1774170664004,-500.195571,0.00044543,120]
[408722580,1774170664014,-500.195571,0.00044543,120]
[408722581,1774170664023,-341.447396,0.00044543,120]
[408722582,1774170664033,-151.0,0.00044543,120]
[408722583,1774170664043,-341.447396,0.00044543,120]
[408722584,1774170664052,-341.447396,0.00044543,120]
[408722585,1774170664062,-341.447396,0.00044543,120]
[408722586,1774170664072,-151.0,0.00044543,120]
[408722587,1774170664082,-151.0,0.00044543,120]
[408722588,1774170664092,-527.28,0.00044568,120]
[408722589,1774170664101,-989.629068,0.0004465,2]
[408722590,1774170664110,-150.0,0.00044677,30]
[408722591,1774170664120,-511.3125,0.00044748,30]
[408722592,1774170664132,-250.0,0.0004477,3]
[408722593,1774170664142,-1900.0,0.00044775,60]
[408722594,1774170664151,-1802.0,0.00044775,60]
[408722595,1774170664161,-2650.0,0.00044775,120]
[408722596,1774170664170,-2650.0,0.00044775,120]
[408722597,1774170664180,-2621.0,0.00044775,120]
[408722598,1774170664189,-200.0,0.000449,27]
[408722599,1774170664200,-1093.0,0.0004492,120]
[408722600,1774170664210,-369.6380941,0.00045,120]
[408722601,1774170664219,-372.0,0.00045,30]
[408722602,1774170664228,-198.9895826,0.00045,120]
[408722603,1774170664238,-500.0,0.00045,45]
[408722604,1774170664247,-500.0,0.00045,45]
[408722605,1774170664256,-500.0,0.00045,45]
[408722606,1774170664265,-500.0,0.00045,45]
[408722607,1774170664274,-500.0,0.00045,45]
[408722608,1774170664283,-500.0,0.00045,45]
[408722609,1774170664292,-20024.26527278,0.00045,5]
[408722610,1774170664302,-7970.24,0.00045,120]
[408722611,1774170664310,-782.43147709,0.00045,30]
[408722612,1774170664319,-704.06,0.00045,120]
[408722613,1774170664329,-1562.31,0.00045,120]
[408722614,1774170664338,-425.59,0.00045,120]
[408722615,1774170664347,-319.47,0.00045,120]
[408722616,1774170664357,-706.81,0.00045,120]
[408722617,1774170664366,-431.44,0.00045,120]
[408722618,1774170664375,-89652.69,0.00045,7]
[408722619,1774170664385,-29013.0,0.00045,60]
[408722620,1774170664394,-151.0,0.00045,60]
[408722621,1774170664404,-151.0,0.00045,120]
[408722622,1774170664413,-151.0,0.00045,60]
[408722623,1774170664422,-151.0,0.00045,120]
[408722624,1774170664431,-504.429898,0.00045,120]
[408722625,1774170664441,-504.429898,0.00045,120]
[408722626,1774170664450,-151.0,0.00045,120]
[408722627,1774170664460,-504.429898,0.00045,120]
[408722628,1774170664470,-504.429898,0.00045,120]
[408722629,1774170664479,-779.223212,0.00045,120]
[408722630,1774170664488,-253.77287,0.00045,120]
[408722631,1774170664498,-779.223212,0.00045,120]
[408722632,1774170664507,-253.77287,0.00045,120]
[408722633,1774170664517,-151.0,0.00045,120]
[408722634,1774170664527,-151.0,0.00045,120]
[408722635,1774170664536,-253.77287,0.00045,120]
[408722636,1774170664546,-779.223212,0.00045,120]
[408722637,1774170664555,-151.0,0.00045,120]
[408722638,1774170664565,-151.0,0.00045,120]
[408722639,1774170664575,-253.77287,0.00045,120]
[408722640,1774170664584,-779.223212,0.00045,120]
[408722641,1774170664593,-151.0,0.00045,120]
[408722642,1774170664605,-364.911812,0.00045,120]
[408722643,1774170664615,-364.911812,0.00045,120]
[408722644,1774170664624,-364.911812,0.00045,120]
[408722645,1774170664633,-364.911812,0.00045,120]
[408722646,1774170664642,-645.458031,0.00045,31]
[408722647,1774170664652,-582.484964,0.00045,120]
[408722648,1774170664662,-645.458031,0.00045,31]
[408722649,1774170664671,-152.306982,0.00045,120]
[408722650,1774170664681,-582.484964,0.00045,120]
[408722651,1774170664690,-645.458031,0.00045,31]
[408722652,1774170664699,-152.306982,0.00045,120]
[408722653,1774170664709,-582.484964,0.00045,120]
[408722654,1774170664718,-645.458031,0.00045,31]
[408722655,1774170664728,-152.306982,0.00045,120]
[408722656,1774170664737,-582.484964,0.00045,120]
[408722657,1774170664746,-152.306982,0.00045,120]
[408722658,1774170664756,-151.0,0.00045,120]
[408722659,1774170664765,-520.866256,0.00045,120]
[408722660,1774170664775,-520.866256,0.00045,120]
[408722661,1774170664784,-299.084942,0.00045,120]
[408722662,1774170664794,-520.866256,0.00045,120]
[408722663,1774170664803,-520.866256,0.00045,120]
[408722664,1774170664813,-164.82319,0.00045,120]
[408722665,1774170664822,-164.82319,0.00045,120]
[408722666,1774170664832,-164.82319,0.00045,120]
[408722667,1774170664841,-164.82319,0.00045,120]
[408722668,1774170664850,-609.885557,0.00045,120]
[408722669,1774170664860,-155.588913,0.00045,120]
[408722670,1774170664869,-151.0,0.00045,120]
[408722671,1774170664878,-225.107229,0.00045,120]
[408722672,1774170664887,-609.885557,0.00045,120]
[408722673,1774170664896,-155.588913,0.00045,120]
[408722674,1774170664906,-225.107229,0.00045,120]
[408722675,1774170664915,-609.885557,0.00045,120]
[408722676,1774170664924,-1484.770595,0.00045,120]
[408722677,1774170664933,-155.588913,0.00045,120]
[408722678,1774170664943,-225.107229,0.00045,120]
[408722679,1774170664953,-609.885557,0.00045,120]
[408722680,1774170664962,-788.957587,0.00045,120]
[408722681,1774170664972,-155.588913,0.00045,120]
[408722682,1774170664982,-225.107229,0.00045,120]
[408722683,1774170664991,-788.957587,0.00045,120]
[408722684,1774170665001,-788.957587,0.00045,120]
[408722685,1774170665010,-193.618154,0.00045,120]
[408722686,1774170665020,-788.957587,0.00045,120]
[408722687,1774170665030,-1484.770595,0.00045,120]
[408722688,1774170665039,-151.0,0.00045,120]
[408722689,1774170665049,-151.0,0.00045,120]
[408722690,1774170665058,-193.618154,0.00045,120]
[408722691,1774170665067,-151.0,0.00045,120]
[408722692,1774170665076,-1484.770595,0.00045,120]
[408722693,1774170665086,-151.0,0.00045,120]
[408722694,1774170665095,-193.618154,0.00045,120]
[408722695,1774170665105,-151.0,0.00045,120]
[408722696,1774170665114,-1484.770595,0.00045,120]
[408722697,1774170665125,-151.0,0.00045,120]
[408722698,1774170665135,-151.0,0.00045,120]
[408722699,1774170665144,-193.618154,0.00045,120]
[408722700,1774170665153,-151.0,0.00045,120]
[408722701,1774170665163,-151.0,0.00045,120]
[408722702,1774170665173,-1759.852091,0.00045,120]
[408722703,1774170665183,-694.167574,0.00045,120]
[408722704,1774170665192,-151.0,0.00045,120]
[408722705,1774170665204,-1759.852091,0.00045,120]
[408722706,1774170665213,-694.167574,0.00045,120]
[408722707,1774170665223,-151.0,0.00045,14]
[408722708,1774170665232,-1759.852091,0.00045,120]
[408722709,1774170665241,-694.167574,0.00045,120]
[408722710,1774170665251,-1759.852091,0.00045,120]
[408722711,1774170665260,-694.167574,0.00045,120]
[408722712,1774170665270,-151.0,0.00045,120]
[408722713,1774170665279,-287.963644,0.00045,120]
[408722714,1774170665289,-151.0,0.00045,120]
[408722715,1774170665298,-575.865545,0.00045,120]
[408722716,1774170665307,-151.0,0.00045,14]
[408722717,1774170665317,-287.963644,0.00045,120]
[408722718,1774170665326,-1012.464294,0.00045,120]
[408722719,1774170665335,-575.865545,0.00045,120]
[408722720,1774170665345,-1012.464294,0.00045,120]
[408722721,1774170665354,-287.963644,0.00045,120]
[408722722,1774170665363,-575.865545,0.00045,120]
[408722723,1774170665373,-151.0,0.00045,120]
[408722724,1774170665382,-1012.464294,0.00045,120]
[408722725,1774170665391,-287.963644,0.00045,120]
[408722726,1774170665400,-151.0,0.00045,120]
[408722727,1774170665409,-575.865545,0.00045,120]
[408722728,1774170665418,-1012.464294,0.00045,120]
[408722729,1774170665427,-151.0,0.00045,120]
[408722730,1774170665437,-169.347235,0.00045,120]
[408722731,1774170665447,-151.0,0.00045,120]
[408722732,1774170665456,-158.360273,0.00045,120]
[408722733,1774170665466,-171.310463,0.00045,120]
[408722734,1774170665475,-151.0,0.00045,120]
[408722735,1774170665484,-151.0,0.00045,120]
[408722736,1774170665494,-403.998401,0.00045,120]
[408722737,1774170665503,-291.463783,0.00045,120]
[408722738,1774170665512,-151.0,0.00045,120]
[408722739,1774170665522,-6318.0,0.00045,120]
[408722740,1774170665531,-403.998401,0.00045,120]
[408722741,1774170665541,-151.0,0.00045,120]
[408722742,1774170665550,-151.0,0.00045,120]
[408722743,1774170665560,-403.998401,0.00045,120]
[408722744,1774170665569,-403.998401,0.00045,120]
[408722745,1774170665579,-151.0,0.00045,120]
[408722746,1774170665588,-151.0,0.00045,120]
[408722747,1774170665597,-181.28701,0.00045,120]
[408722748,1774170665606,-181.28701,0.00045,120]
[408722749,1774170665616,-181.28701,0.00045,120]
[408722750,1774170665625,-181.28701,0.00045,120]
[408722751,1774170665634,-150.0,0.00045049,30]
[408722752,1774170665643,-244.32653383,0.000451,120]
[408722753,1774170665653,-3246.94,0.00045205,120]
[408722754,1774170665662,-250.0,0.00045205,2]
[408722755,1774170665671,-383.0,0.00045205,2]
[408722756,1774170665681,-350.0,0.00045205,2]
[408722757,1774170665690,-350.0,0.00045205,2]
[408722758,1774170665699,-227.0,0.00045205,2]
[408722759,1774170665709,-350.0,0.00045205,2]
[408722760,1774170665719,-350.0,0.00045205,2]
[408722761,1774170665728,-216.0,0.00045205,2]
[408722762,1774170665738,-300.0,0.00045205,2]
[408722763,1774170665747,-300.0,0.00045205,2]
[408722764,1774170665756,-253.0,0.00045205,2]
[408722765,1774170665766,-350.0,0.00045205,2]
[408722766,1774170665775,-350.0,0.00045205,2]
[408722767,1774170665784,-224.0,0.00045205,2]
[408722768,1774170665793,-300.0,0.00045205,2]
[408722769,1774170665803,-300.0,0.00045205,2]
[408722770,1774170665812,-170.0,0.00045205,2]
[408722771,1774170665821,-152.0,0.000453,120]
[408722772,1774170665830,-2000.0,0.000453,2]
[408722773,1774170665839,-150.0,0.00045422,30]
[408722774,1774170665849,-151.0,0.00045479,120]
[408722775,1774170665858,-151.0,0.00045479,120]
[408722776,1774170665867,-151.0,0.00045479,120]
[408722777,1774170665877,-362.72905046,0.00045556,30]
[408722778,1774170665886,-3514.0,0.00045564,2]
[408722779,1774170665895,-1044.0,0.00045564,2]
[408722780,1774170665904,-250.0,0.00045582,110]
[408722781,1774170665913,-2453.2017851,0.0004559,2]
[408722782,1774170665922,-786.03,0.000456,30]
[408722783,1774170665932,-183.5,0.00045616,120]
[408722784,1774170665941,-509.0,0.00045633,120]
[408722785,1774170665950,-1836.3214362,0.00045793,120]
[408722786,1774170665959,-150.0,0.00045794,30]
[408722787,1774170665968,-666.0,0.00045999,30]
[408722788,1774170665977,-300.0,0.00045999,30]
[408722789,1774170665986,-372.0,0.00046,30]
[408722790,1774170665995,-500167.00717219,0.00046,120]
[408722791,1774170666005,-383853.20588219,0.00046,7]
[408722792,1774170666014,-221.73483285,0.00046,30]
[408722793,1774170666023,-716.38840889,0.00046,30]
[408722794,1774170666032,-505.932421,0.00046,120]
[408722795,1774170666041,-151.0,0.00046,120]
[408722796,1774170666050,-505.932421,0.00046,120]
[408722797,1774170666060,-151.0,0.00046,120]
[408722798,1774170666070,-151.0,0.00046,120]
[408722799,1774170666079,-505.932421,0.00046,120]
[408722800,1774170666088,-869.729177,0.00046,7]
[408722801,1774170666098,-151.0,0.00046,120]
[408722802,1774170666107,-224.009062,0.00046,120]
[408722803,1774170666116,-869.729177,0.00046,7]
[408722804,1774170666129,-505.932421,0.00046,120]
[408722805,1774170666138,-224.009062,0.00046,120]
[408722806,1774170666147,-869.729177,0.00046,7]
[408722807,1774170666156,-517.32306,0.00046,120]
[408722808,1774170666167,-224.009062,0.00046,120]
[408722809,1774170666176,-869.729177,0.00046,7]